fUST/lending_fUST_20240707
["ID","MTS","AMOUNT","RATE_DAILY","PERIOD"]
[331369076,1720285852574,-500.0,0.00043835,120]
[331369077,1720285852584,-500.0,0.00043835,120]
[331369078,1720285852595,-500.0,0.00043835,120]
[331369079,1720285852605,-500.0,0.00043835,120]
[331369080,1720285852614,-505.91922995,0.00043835,120]
[331369081,1720285852624,-500.0,0.00043835,120]
[331369082,1720285852633,-356.72244898,0.00043835,120]
[331369083,1720285852642,-500.0,0.00043835,120]
[331369084,1720285852653,-468.58421245,0.00043835,120]
[331369085,1720285852662,-672.69,0.00043835,120]
[331369086,1720285852672,-502.9396306,0.00043835,120]
[331369087,1720285852682,-500.55,0.00043835,120]
[331369088,1720285852691,-500.0,0.00043835,120]
[331369089,1720285852701,-500.0,0.00043835,120]
[331369090,1720285852710,-500.0,0.00043835,120]
[331369091,1720285852719,-200.0,0.00043835,7]
[331369092,1720285852729,-500.0,0.00043835,120]
[331369093,1720285852739,-509.87386553,0.00043835,120]
[331369094,1720285852749,-500.64279577,0.00043835,120]
[331369095,1720285852758,-500.0,0.00043835,120]
[331369096,1720285852768,-500.0,0.00043835,120]
[331369097,1720285852778,-519.09316932,0.00043835,120]
[331369098,1720285852787,-193.92018827,0.00043835,120]
[331369099,1720285852798,-616.42,0.00043835,120]
[331369100,1720285852809,-270.97337564,0.00043835,120]
[331369101,1720285852819,-503.16108339,0.00043835,120]
[331369102,1720285852829,-500.0,0.00043835,120]
[331369103,1720285852839,-500.0,0.00043835,120]
[331369104,1720285852849,-500.0,0.00043835,120]
[331369105,1720285852859,-500.0,0.00043835,120]
[331369106,1720285852869,-500.0,0.00043835,30]
[331369107,1720285852878,-500.0,0.00043835,120]
[331369108,1720285852888,-499.44329164,0.00043835,120]
[331369109,1720285852898,-500.0,0.00043835,120]
[331369110,1720285852907,-500.0,0.00043835,120]
[331369111,1720285852917,-500.0,0.00043835,120]
[331369112,1720285852926,-500.0,0.00043835,120]
[331369113,1720285852936,-500.0,0.00043835,120]
[331369114,1720285852946,-500.0,0.00043835,120]
[331369115,1720285852955,-501.86553511,0.00043835,120]
[331369116,1720285852964,-500.0,0.00043835,2]
[331369117,1720285852974,-500.0,0.00043835,120]
[331369118,1720285852984,-196.10443754,0.00043835,120]
[331369119,1720285852993,-500.0,0.00043835,120]
[331369120,1720285853003,-500.0,0.00043835,120]
[331369121,1720285853012,-500.0,0.00043835,120]
[331369122,1720285853022,-500.0,0.00043835,120]
[331369123,1720285853031,-500.0,0.00043835,120]
[331369124,1720285853040,-500.0,0.00043835,120]
[331369125,1720285853049,-509.49118362,0.00043835,120]
[331369126,1720285853058,-504.49059615,0.00043835,120]
[331369127,1720285853067,-500.0,0.00043835,120]
[331369128,1720285853077,-502.01826019,0.00043835,120]
[331369129,1720285853086,-500.0,0.00043835,120]
[331369130,1720285853096,-500.0,0.00043835,120]
[331369131,1720285853106,-95.12338786,0.00043835,120]
[331369132,1720285853334,-326.11,0.00043835,120]
[331369133,1720285853346,-78.76661214,0.00043835,120]
[331369134,1720285853356,-500.0,0.00043835,120]
[331369135,1720285853365,-501.05821651,0.00043835,120]
[331369136,1720285853374,-500.0,0.00043835,120]
[331369137,1720285853383,-500.0,0.00043835,120]
[331369138,1720285853396,-500.0,0.00043835,120]
[331369139,1720285853406,-500.0,0.00043835,120]
[331369140,1720285853415,-500.0,0.00043835,120]
[331369141,1720285853424,-161.33166357,0.00043835,120]
[331369142,1720285853436,-338.66833643,0.00043835,120]
[331369143,1720285853445,-500.0,0.00043835,120]
[331369144,1720285853455,-500.0,0.00043835,120]
[331369145,1720285853464,-500.0,0.00043835,120]
[331369146,1720285853473,-500.0,0.00043835,120]
[331369147,1720285853482,-500.0,0.00043835,120]
[331369148,1720285853491,-500.0,0.00043835,120]
[331369149,1720285853500,-508.53926887,0.00043835,120]
[331369150,1720285853509,-310.29239471,0.00043835,120]
[331369151,1720285853521,-189.70760529,0.00043835,120]
[331369152,1720285853530,-500.0,0.00043835,120]
[331369153,1720285853539,-500.0,0.00043835,120]
[331369154,1720285853548,-500.0,0.00043835,120]
[331369155,1720285853557,-1116.88,0.00043835,120]
[331369156,1720285853716,-503.52,0.00043835,120]
[331369157,1720285853726,-151.0,0.00043835,14]
[331369158,1720285853735,-151.0,0.00043835,14]
[331369159,1720285853744,-151.0,0.00043835,14]
[331369160,1720285853753,-151.0,0.00043835,14]
[331369161,1720285853762,-243.768511,0.00043835,14]
[331369162,1720285853771,-500.0,0.00043835,120]
[331369163,1720285853780,-500.0,0.00043835,120]
[331369164,1720285853789,-502.10208647,0.00043835,120]
[331369165,1720285853798,-500.0,0.00043835,120]
[331369166,1720285853808,-500.0,0.00043835,120]
[331369167,1720285853816,-504.23984414,0.00043835,120]
[331369168,1720285853825,-500.0,0.00043835,120]
[331369169,1720285853835,-130.497281,0.00043835,14]
[331369170,1720285853848,-20.502719,0.00043835,14]
[331369171,1720285853858,-151.0,0.00043835,14]
[331369172,1720285853867,-151.0,0.00043835,14]
[331369173,1720285853875,-151.0,0.00043835,14]
[331369174,1720285853886,-151.0,0.00043835,14]
[331369175,1720285853895,-357.7551326,0.00043835,120]
[331369176,1720285853907,-142.2448674,0.00043835,120]
[331369177,1720285853918,-500.0,0.00043835,120]
[331369178,1720285853928,-500.0,0.00043835,120]
[331369179,1720285853938,-505.14523117,0.00043835,120]
[331369180,1720285853947,-500.0,0.00043835,120]
[331369181,1720285853956,-500.0,0.00043835,120]
[331369182,1720285853966,-500.0,0.00043835,120]
[331369183,1720285853974,-2006.61572672,0.00043835,120]
[331369184,1720285853986,-28.32427328,0.00043835,120]
[331369185,1720285853996,-235.26265234,0.00043835,120]
[331369186,1720285854005,-500.0,0.00043835,120]
[331369187,1720285854014,-500.0,0.00043835,120]
[331369188,1720285854024,-2092.13,0.00043835,120]
[331369189,1720285854032,-455.26594778,0.00043835,120]
[331369190,1720285854042,-500.0,0.00043835,120]
[331369191,1720285854051,-500.0,0.00043835,120]
[331369192,1720285854060,-500.0,0.00043835,120]
[331369193,1720285854073,-500.0,0.00043835,120]
[331369194,1720285854082,-500.0,0.00043835,120]
[331369195,1720285854092,-500.0,0.00043835,120]
[331369196,1720285854102,-558.55646941,0.00043835,120]
[331369197,1720285854111,-500.0,0.00043835,120]
[331369198,1720285854121,-500.0,0.00043835,120]
[331369199,1720285854131,-2716.97,0.00043835,120]
[331369200,1720285854140,-479.49065718,0.00043835,120]
[331369201,1720286067082,525.26351233,0.00014999,2]
[331369202,1720286135425,283.26851156,0.00014999,2]
[331369203,1720286144972,155.15151516,0.00014999,2]
[331369204,1720286146497,1143.00455779,0.00014999,2]
[331369205,1720286221345,154.97675349,0.00014999,2]
[331369206,1720286230980,415.88353345,0.00014999,2]
[331369208,1720286260379,523.68456754,0.00014999,2]
[331369209,1720286261621,933.08575257,0.00014999,2]
[331369210,1720286267032,195.52436264,0.00014999,2]
[331369211,1720286270154,401.7459215,0.00014999,2]
[331369212,1720286271963,517.80580605,0.00014999,2]
[331369213,1720286274559,661.12832609,0.00014999,2]
[331369214,1720286277268,457.57827588,0.00014999,2]
[331369215,1720286287158,421.93184979,0.00014999,2]
[331369216,1720286291197,293.07017019,0.00014999,2]
[331369217,1720286301047,165.54008606,0.00014999,2]
[331369218,1720286316468,179.583121,0.00014999,2]
[331369219,1720286317545,163.5362831,0.00014999,2]
[331369220,1720286374382,157.57380656,0.00014999,2]
[331369221,1720286378067,208.7303948,0.00014999,2]
[331369222,1720286380293,241.01748097,0.00014999,2]
[331369229,1720286435386,523.68456754,0.00014999,2]
[331369234,1720286487016,11029.28750384,0.00014998,2]
[331369235,1720286495510,159.35965211,0.00014999,2]
[331369239,1720286510313,168.75488382,0.00014999,2]
[331369241,1720286522631,155.00852547,0.00014999,2]
[331369242,1720286528330,286.45866748,0.00014999,2]
[331369243,1720286533105,844.12159152,0.00014999,2]
[331369245,1720286539377,516.08745791,0.00014999,2]
[331369247,1720286552366,155.12925249,0.00014999,2]
[331369248,1720286604681,908.54949828,0.00014999,2]
[331369249,1720286608580,544.3005608,0.00014999,2]
[331369252,1720286668522,525.26351233,0.00014999,2]
[331369254,1720286705576,150.0,0.0002657,20]
[331369255,1720286716524,265.18653509,0.00014999,2]
[331369257,1720286754742,404.46235472,0.00014999,2]
[331369261,1720286893236,656.07308522,0.00014999,2]
[331369262,1720286900527,510.1563651,0.00014999,2]
[331369267,1720286942514,1039.06688618,0.00015,2]
[331369268,1720286958337,-300.0,0.00016253,2]
[331369269,1720286958359,-300.0,0.00016253,2]
[331369270,1720286958381,-46365.58839701,0.00016254,2]
[331369271,1720286958403,-187.6858195,0.00016255,2]
[331369272,1720286958425,-758.295842,0.00016255,2]
[331369273,1720286969164,-2118.3618334,0.0001818,2]
[331369274,1720286969187,-514.29728027,0.0001818,2]
[331369275,1720286969213,-1116.9418809,0.0002,2]
[331369276,1720286969237,-344.359485,0.00020685,2]
[331369277,1720286969262,-166.666666,0.00020733,2]
[331369278,1720286969290,-247.436649,0.00021096,2]
[331369279,1720286969315,-166.666666,0.00021298,2]
[331369280,1720286969342,-166.666666,0.00021863,2]
[331369281,1720286969366,-208.35130789,0.0002217,2]
[331369282,1720286969390,-166.666666,0.00022428,2]
[331369283,1720286969413,-451.26255636,0.0002243,2]
[331369284,1720286969435,-165.08616365,0.0002243,2]
[331369285,1720286969459,-165.08616365,0.0002243,2]
[331369286,1720286969482,-154.76012181,0.00022941,2]
[331369287,1720286969504,-154.76012181,0.00022943,2]
[331369288,1720286969526,-154.76012181,0.00022943,2]
[331369289,1720286969553,-166.666666,0.00022994,2]
[331369290,1720286969577,-1841.92090041,0.00023032,2]
[331369304,1720287033208,-776.37615452,0.0001818,2]
[331369305,1720287033218,-207.66347557,0.0001818,2]
[331369306,1720287033227,-187.6858195,0.0001818,2]
[331369307,1720287033237,-154.76012181,0.0001818,2]
[331369308,1720287033248,-256.50465759,0.0002,2]
[331369309,1720287033258,-235.064816,0.00021096,2]
[331369310,1720287033268,-81.94495501,0.00023032,2]
[331369400,1720287038416,-5208.87999999,0.00023032,2]
[331369437,1720287041704,-845.56521178,0.00023032,2]
[331369439,1720287041714,-225.57506949,0.00023032,2]
[331369440,1720287041725,-4173.5699611,0.00023032,2]
[331369441,1720287041739,-166.666666,0.00023559,2]
[331369442,1720287041749,-220.44502019,0.00024481,2]
[331369443,1720287041760,-354.4012313,0.00025769,2]
[331369444,1720287041771,-235.064816,0.00027195,2]
[331369445,1720287041781,-173.5807378,0.00027397,120]
[331369446,1720287041791,-188.46261212,0.000274,2]
[331369447,1720287041801,-360.68182567,0.00027917,7]
[331369448,1720287041814,-154.76012181,0.00027917,2]
[331369449,1720287041824,-268.36537859,0.00028,2]
[331369450,1720287041834,-24900.0,0.00029188,2]
[331369451,1720287041844,-642.9488218,0.0003,4]
[331369452,1720287041854,-284.30371793,0.0003,3]
[331369453,1720287041864,-170.35079036,0.0003,4]
[331369454,1720287041874,-322.0,0.0003,2]
[331369455,1720287041885,-354.4012313,0.00030117,2]
[331369456,1720287041895,-344.359485,0.00031028,2]
[331369457,1720287041906,-235.064816,0.00033295,2]
[331369458,1720287041916,-354.4012313,0.00034465,2]
[331369459,1720287041927,-962.96577273,0.00035,4]
[331369460,1720287041936,-531.56332391,0.00036,30]
[331369461,1720287041947,-495.50543718,0.00038264,4]
[331369462,1720287041957,-354.4012313,0.00038812,2]
[331369463,1720287041967,-550.22191672,0.00039177,4]
[331369464,1720287041977,-490.92637027,0.00039177,4]
[331369465,1720287041986,-235.064816,0.00039394,2]
[331369466,1720287041997,-777.46,0.0003997,3]
[331369467,1720287042008,-500.0,0.00039979,7]
[331369468,1720287042019,-500.0,0.00039979,7]
[331369469,1720287042029,-500.0,0.00039979,7]
[331369470,1720287042039,-500.0,0.00039979,7]
[331369471,1720287042048,-500.0,0.00039979,7]
[331369472,1720287042059,-500.0,0.00039979,7]
[331369473,1720287042069,-460.84920895,0.00039979,7]
[331369474,1720287042080,-500.0,0.00039979,7]
[331369475,1720287042090,-12927.05994242,0.0003998,5]
[331369476,1720287042106,-86410.36614518,0.0003998,5]
[331369477,1720287042116,-3990.98413807,0.0003999,4]
[331369478,1720287042126,-723.78639686,0.00039993,4]
[331369479,1720287042138,-567.15112247,0.00039994,4]
[331369480,1720287042148,-155.24504768,0.00039994,4]
[331369481,1720287042159,-877.37314675,0.0004,4]
[331369482,1720287042169,-314.27902116,0.0004,120]
[331369483,1720287042179,-150.0,0.0004,2]
[331369484,1720287042190,-155.24403697,0.00040229,10]
[331369485,1720287042200,-155.41402552,0.00040278,4]
[331369486,1720287042211,-318.0694556,0.00040278,4]
[331369487,1720287042220,-200.0,0.00040548,2]
[331369488,1720287042231,-359.1563055,0.00040578,31]
[331369489,1720287042243,-562.1241737,0.00040578,31]
[331369490,1720287042253,-500.0,0.00040578,31]
[331369491,1720287042263,-500.0,0.00040578,31]
[331369492,1720287042274,-579.95854411,0.00040578,31]
[331369493,1720287042284,-500.0,0.00040578,31]
[331369494,1720287042294,-500.0,0.00040578,31]
[331369495,1720287042304,-500.0,0.00040578,31]
[331369496,1720287042314,-500.0,0.00040578,31]
[331369497,1720287042324,-500.0,0.00040578,31]
[331369498,1720287042334,-500.0,0.00040578,31]
[331369499,1720287042344,-500.0,0.00040578,31]
[331369500,1720287042357,-1960.59952811,0.00040578,31]
[331369520,1720287046344,-416.6784868,0.00040278,4]
[331369523,1720287046356,-1123.96077057,0.00040578,31]
[331369542,1720287049088,-2850.52,0.00040569,3]
[331369543,1720287049098,-503.69619932,0.00040578,31]
[331369544,1720287049111,-14275.21797883,0.00040578,31]
[331369545,1720287049123,-23770.17415648,0.00040578,31]
[331369546,1720287049134,-32947.39016616,0.00040578,31]
[331369550,1720287646359,882.74021906,0.000125,2]
[331369551,1720287669269,3092.63023148,0.000139,2]
[331369554,1720287697425,29277.61465647,0.00014,2]
[331369558,1720287742172,-190.9281156,0.00023868,2]
[331369559,1720287742217,-174.18546862,0.00023966,2]
[331369560,1720287742234,-190.9281156,0.00023966,2]
[331369561,1720287742247,-572.84471596,0.00023966,2]
[331369562,1720287773701,199.88176709,0.00014,2]
[331369563,1720287789634,161.65194627,0.00014,2]
[331369564,1720287860908,511.62982065,0.00014,2]
[331369565,1720287866842,813.71972672,0.00014,2]
[331369566,1720287885793,271.01064783,0.00014999,2]
[331369567,1720287893735,2101.43499469,0.00014,2]
[331369568,1720288024664,878.09217026,0.00014999,2]
[331369569,1720288033172,-188.051852,0.00021096,2]
[331369570,1720288033196,-300.0,0.00023965,2]
[331369571,1720288033220,-300.0,0.00023965,2]
[331369572,1720288033243,-763.32326228,0.00023966,2]
[331369573,1720288033265,-1001.29118645,0.00023966,2]
[331369574,1720288044127,-3172.27877465,0.00023966,2]
[331369575,1720288044155,-166.666666,0.00026016,2]
[331369576,1720288044179,-178.469336,0.0002629,2]
[331369577,1720288044205,-223.0,0.00026362,2]
[331369578,1720288044233,-166.666666,0.00026725,2]
[331369579,1720288044256,-299.47574748,0.00027184,2]
[331369580,1720288044281,-188.051852,0.00027195,2]
[331369581,1720288044304,-789.77698638,0.00027399,2]
[331369582,1720288044330,-166.666666,0.00027435,2]
[331369583,1720288044355,-166.666666,0.00028144,2]
[331369584,1720288044380,-166.666666,0.00028853,2]
[331369585,1720288044405,-166.666666,0.00029563,2]
[331369586,1720288044428,-157.27126622,0.0003,4]
[331369587,1720288044450,-213.234,0.0003,7]
[331369588,1720288045099,-1756.75310846,0.00030169,2]
[331369598,1720288233247,-12015.13140081,0.00029769,2]
[331369680,1720288241797,-683.63111226,0.00029769,2]
[331369683,1720288241807,-362.22765402,0.00029822,2]
[331369686,1720288241817,-500.0,0.00029822,2]
[331369689,1720288241828,-164.1961937,0.00029822,2]
[331369691,1720288241838,-495.64991211,0.00029822,2]
[331369693,1720288241847,-83.65080235,0.00029823,2]
[331369695,1720288241859,-99916.34919765,0.00029823,2]
[331369697,1720288241869,-212.62,0.00029869,3]
[331369698,1720288241878,-2270.06206938,0.00030068,2]
[331369699,1720288241888,-23143.24689154,0.00030169,2]
[331369700,1720288241899,-5607.48363295,0.00030169,4]
[331369701,1720288241910,-284.30371793,0.00030169,3]
[331369702,1720288241919,-324.32047969,0.00030169,4]
[331369703,1720288241930,-254.03134795,0.00030169,4]
[331369704,1720288241940,-12698.76251303,0.00031677,2]
[331369705,1720288241950,-2270.06206938,0.00032725,2]
[331369706,1720288241960,-511.41395898,0.00032983,2]
[331369707,1720288241969,-433.8034697,0.00032983,2]
[331369708,1720288241979,-500.3492932,0.00032983,2]
[331369709,1720288241989,-221.58728046,0.00032983,2]
[331369710,1720288241999,-188.051852,0.00033295,2]
[331369711,1720288242008,-12698.76251303,0.00033585,2]
[331369712,1720288242018,-118554.281437,0.00034412,4]
[331369713,1720288242027,-1143.91485947,0.0003455,2]
[331369714,1720288242038,-14611.1912655,0.00034551,2]
[331369715,1720288242049,-150.0,0.0003468,2]
[331369716,1720288242059,-399.49347771,0.00035,2]
[331369717,1720288242069,-352.10804848,0.00035228,2]
[331369718,1720288242078,-2270.06206938,0.00035382,2]
[331369720,1720288242088,-269.54590627,0.00035491,7]
[331369722,1720288242097,-286.23944747,0.00035491,7]
[331369724,1720288242107,-500.0,0.00035491,7]
[331369726,1720288242117,-500.0,0.00035491,7]
[331369728,1720288242131,-500.0,0.00035491,7]
[331369729,1720288242141,-500.0,0.00035491,7]
[331369731,1720288242150,-500.0,0.00035491,7]
[331369733,1720288242160,-495.77885749,0.00035491,7]
[331369735,1720288242170,-500.0,0.00035491,7]
[331369737,1720288242180,-500.0,0.00035491,7]
[331369739,1720288242189,-12698.76251303,0.00035492,2]
[331369740,1720288242200,-174.365209,0.00035617,2]
[331369742,1720288242211,-1109.8873146,0.00036568,4]
[331369744,1720288242221,-155.11332947,0.00037,4]
[331369745,1720288242231,-247.02612281,0.00037,5]
[331369746,1720288242240,-214.95606653,0.0003701,4]
[331369747,1720288242250,-118554.281437,0.00037075,4]
[331369748,1720288242259,-12698.76251303,0.000374,2]
[331369749,1720288242269,-500.0,0.000375,5]
[331369750,1720288242279,-339.73647518,0.00037523,4]
[331369751,1720288242289,-1220.69990173,0.00037807,4]
[331369752,1720288242299,-500.0,0.00038,5]
[331369753,1720288242308,-2270.06206938,0.00038039,2]
[331369754,1720288242319,-3490.48560076,0.00038264,4]
[331369755,1720288242328,-500.0,0.000385,5]
[331369756,1720288242339,-237108.562874,0.0003899,5]
[331369757,1720288242348,-962.96577273,0.00038999,4]
[331369758,1720288242358,-656.45199185,0.00038999,30]
[331369759,1720288242367,-83501.18754397,0.00039,5]
[331369760,1720288242377,-1000.0,0.00039,3]
[331369761,1720288242386,-500.0,0.00039,5]
[331369762,1720288242395,-495.50543718,0.00039177,4]
[331369763,1720288242405,-2832.46914027,0.00039393,120]
[331369764,1720288242414,-642.9488218,0.00039393,4]
[331369765,1720288242424,-188.051852,0.00039394,2]
[331369766,1720288242433,-500.0,0.000395,5]
[331369767,1720288242444,-5058.16469769,0.00039987,3]
[331369768,1720288242453,-3990.98413807,0.00039999,4]
[331369769,1720288242463,-252.16904731,0.00039999,4]
[331369770,1720288242473,-1500.0,0.00039999,4]
[331369771,1720288242482,-2132.45671248,0.00039999,4]
[331369772,1720288242492,-1434.44237247,0.00039999,4]
[331369773,1720288242502,-12020.66693175,0.0004,120]
[331369774,1720288242512,-2836.46925213,0.0004,10]
[331369794,1720288243099,-2185.26082658,0.0004,10]
[331369795,1720288243109,-500.0,0.0004,5]
[331369796,1720288243120,-190.45822619,0.0004,120]
[331369797,1720288243132,-412.07735676,0.00040278,4]
[331369798,1720288243142,-174.69015234,0.00040278,4]
[331369799,1720288243153,-1634.59229075,0.00040278,4]
[331369800,1720288243163,-661.12832609,0.00040278,4]
[331369801,1720288243173,-150.29386301,0.0004035,2]
[331369802,1720288243182,-1891.19319212,0.00040468,2]
[331369803,1720288243192,-500.0,0.000405,5]
[331369804,1720288243201,-36100.7186483,0.00040546,2]
[331369805,1720288243214,-38533.05732828,0.00040568,31]
[331369806,1720288243224,-154.76012181,0.00040578,4]
[331369807,1720288243234,-9774.21117732,0.00040599,20]
[331369808,1720288243402,-992.23546251,0.00040807,4]
[331369809,1720288243412,-160.0,0.00040941,3]
[331369810,1720288243422,-402.35776708,0.00040999,4]
[331369811,1720288243431,-478.58013204,0.00041,2]
[331369812,1720288243441,-500.0,0.00041,5]
[331369813,1720288243451,-195.57704168,0.00041095,4]
[331369814,1720288243460,-500.0,0.000415,5]
[331369815,1720288243470,-160.0,0.00041708,4]
[331369816,1720288243479,-1000.0,0.00042,42]
[331369817,1720288243489,-500.0,0.00042,5]
[331369818,1720288243499,-154.99342721,0.00042229,4]
[331369819,1720288243508,-329.31032813,0.00042229,4]
[331369820,1720288243517,-155.11691821,0.00042229,4]
[331369821,1720288243526,-322.2543872,0.00042398,4]
[331369822,1720288243535,-186.67873937,0.00042398,4]
[331369823,1720288243544,-11047.9,0.00042465,120]
[331369824,1720288243554,-160.0,0.00042475,5]
[331369825,1720288243565,-2500.0,0.000425,120]
[331369826,1720288243574,-150.0,0.00042932,2]
[331369827,1720288243583,-878.0,0.00042932,2]
[331369828,1720288243592,-150.0,0.00042932,2]
[331369829,1720288243602,-151.74,0.00042932,2]
[331369830,1720288243611,-2040.34238499,0.00043,120]
[331369831,1720288243620,-3015.13026475,0.00043,5]
[331369832,1720288243629,-1000.0,0.00043,43]
[331369833,1720288243639,-1243.8294033,0.00043,2]
[331369834,1720288243648,-200.0,0.00043096,120]
[331369835,1720288243658,-11047.9,0.0004315,120]
[331369836,1720288243667,-160.0,0.00043242,6]
[331369837,1720288243676,-175.1,0.00043265,31]
[331369838,1720288243686,-259.39180364,0.00043287,4]
[331369839,1720288243695,-175.1,0.00043596,31]
[331369840,1720288243704,-1325.63649868,0.00043697,63]
[331369841,1720288243713,-2000.0,0.000437,2]
[331369842,1720288243723,-1000.0,0.00043712,120]
[331369843,1720288243732,-52302.22566462,0.000438,15]
[331369844,1720288244444,-25268.39468044,0.000438,15]
[331369854,1720288248326,-154.76012181,0.00030169,4]
[331369855,1720288248336,-3557.48340119,0.0003467,4]
[331369856,1720288248413,-4327.61681725,0.0003467,4]
[331369860,1720289347042,-187.385627,0.00021096,2]
[331369862,1720289367949,-187.385627,0.00027195,2]
[331369863,1720289368024,-166.666666,0.00028761,2]
[331369864,1720289368056,-174.365209,0.00029275,2]
[331369865,1720289368085,-166.666666,0.00029545,2]
[331369866,1720289368116,-166.666666,0.00030329,2]
[331369867,1720289368146,-167.4837934,0.00030683,2]
[331369868,1720289368178,-671.1312369,0.00030792,2]
[331369869,1720289368208,-166.666666,0.00031114,2]
[331369870,1720289368238,-166.666666,0.00031898,2]
[331369876,1720289428706,181.8878663,0.00021096,2]
[331369952,1720289437170,154.77557542,0.00021096,2]
[331369958,1720289441574,-300.0,0.00032383,2]
[331369961,1720289441584,-89.07306561,0.00032384,2]
[331369963,1720289441595,-24810.92693439,0.00032384,2]
[331369965,1720289441607,-431.7027659,0.00032407,2]
[331369967,1720289441617,-250.0,0.00032467,2]
[331369969,1720289441626,-166.666666,0.00032682,2]
[331369971,1720289441635,-187.385627,0.00033295,2]
[331369973,1720289441648,-10308.17960674,0.00033842,60]
[331369974,1720289441657,-45816.63026436,0.00034562,4]
[331369975,1720289441667,-5607.48363295,0.0003467,4]
[331369976,1720289441677,-248.17713803,0.0003467,4]
[331369977,1720289441686,-284.30371793,0.0003467,3]
[331369978,1720289441696,-3923.7601795,0.0003467,4]
[331369979,1720289441706,-840.24573238,0.0003467,2]
[331369980,1720289441715,-214.95606653,0.0003468,4]
[331369981,1720289441725,-234.81,0.0003523,3]
[331369982,1720289441736,-328.29,0.0003523,3]
[331369983,1720289441746,-656.59,0.0003524,3]
[331369984,1720289441756,-1175.75,0.0003525,3]
[331369985,1720289441765,-328.29,0.0003525,3]
[331369986,1720289441775,-1500.0,0.00035615,4]
[331369987,1720289441784,-503.09405394,0.00036176,2]
[331369988,1720289441794,-252.16904731,0.00036229,4]
[331369989,1720289441803,-94843.4251498,0.00036341,4]
[331369990,1720289441813,-469.62,0.000366,3]
[331369991,1720289441823,-656.58,0.000366,3]
[331369992,1720289441832,-1313.18,0.0003661,3]
[331369993,1720289441842,-2351.5,0.0003662,3]
[331369994,1720289441851,-656.58,0.0003662,3]
[331369995,1720289441860,-962.96577273,0.0003701,4]
[331369996,1720289441869,-13578.69305099,0.00037587,4]
[331369997,1720289441878,-642.9488218,0.00037807,4]
[331369998,1720289441887,-4206.50049918,0.00037899,4]
[331369999,1720289441899,-2832.46914027,0.00038499,120]
[331370000,1720289441909,-172.59237612,0.00038499,4]
[331370001,1720289441919,-281.0184868,0.00039167,4]
[331370002,1720289441928,-7222.57533733,0.00039177,4]
[331370003,1720289441938,-948.84245203,0.00039393,4]
[331370004,1720289441947,-187.385627,0.00039394,2]
[331370005,1720289441957,-933.34700406,0.00039993,4]
[331370006,1720289441967,-3990.98413807,0.00039999,4]
[331370007,1720289441977,-695.64984296,0.00039999,4]
[331370008,1720289441986,-974.151394,0.00039999,4]
[331370009,1720289441995,-656.45199185,0.00040278,30]
[331370010,1720289442004,-207.76713087,0.00040807,4]
[331370011,1720289442014,-951.08426323,0.00040807,4]
[331370012,1720289442023,-359.166242,0.00040807,4]
[331370013,1720289442032,-245.37520907,0.00040999,4]
[331370014,1720289442042,-208.37564863,0.00040999,4]
[331370015,1720289442051,-500.0,0.00041084,31]
[331370016,1720289442061,-500.0,0.00041084,31]
[331370017,1720289442070,-595.77827116,0.00041084,31]
[331370018,1720289442079,-280.26032408,0.00041084,31]
[331370019,1720289442088,-500.0,0.00041084,31]
[331370020,1720289442098,-500.0,0.00041084,31]
[331370021,1720289442107,-500.0,0.00041084,31]
[331370022,1720289442117,-500.0,0.00041084,31]
[331370023,1720289442126,-500.0,0.00041084,31]
[331370024,1720289442136,-500.0,0.00041084,31]
[331370025,1720289442147,-604.06745332,0.00041084,31]
[331370026,1720289442156,-500.0,0.00041084,31]